[Event "Titled Tuesday Blitz August 22 Early 2023"]
[White "Perez, Maximiliano"]
[Black "kaanadayhamle"]
[WhiteFideId "117234"]
[WhiteElo "2504"]
[BlackElo "2352"]
[Result "0-1"]
[Round "9"]
[TimeControl "180+1"]
[Date "2023.08.22"]
[WhiteClock "0:00:16"]
[BlackClock "0:00:05"]
[Board "108"]

1. d4 {[%clk 0:03:00]}  Nf6 {[%clk 0:02:56]} 2. Bf4 {[%clk 0:03:00]}  d5 {[%clk 0:02:55]} 3. e3 {[%clk 0:02:55]}  e6 {[%clk 0:02:53]} 4. Nf3 {[%clk 0:02:54]}  Bd6 {[%clk 0:02:53]} 5. Bg3 {[%clk 0:02:53]}  O-O {[%clk 0:02:53]} 6. Nbd2 {[%clk 0:02:53]}  b6 {[%clk 0:02:54]} 7. c3 {[%clk 0:02:52]}  Bb7 {[%clk 0:02:54]} 8. Bd3 {[%clk 0:02:52]}  c5 {[%clk 0:02:55]} 9. Ne5 {[%clk 0:02:51]}  Qc7 {[%clk 0:02:52]} 10. f4 {[%clk 0:02:51]}  Nbd7 {[%clk 0:02:52]} 11. Qf3 {[%clk 0:02:49]}  Rae8 {[%clk 0:02:44]} 12. Bh4 {[%clk 0:02:49]}  c4 {[%clk 0:02:05]} 13. Bc2 {[%clk 0:02:47]}  b5 {[%clk 0:02:05]} 14. g4 {[%clk 0:02:26]}  Bxe5 {[%clk 0:01:46]} 15. fxe5 {[%clk 0:02:22]}  Ne4 {[%clk 0:01:46]} 16. Nxe4 {[%clk 0:02:22]}  dxe4 {[%clk 0:01:47]} 17. Bxe4 {[%clk 0:02:23]}  Bxe4 {[%clk 0:01:47]} 18. Qxe4 {[%clk 0:02:24]}  f5 {[%clk 0:01:41]} 19. exf6 {[%clk 0:02:21]}  Nxf6 {[%clk 0:01:41]} 20. Bxf6 {[%clk 0:02:17]}  Rxf6 {[%clk 0:01:42]} 21. O-O-O {[%clk 0:02:13]}  Rf2 {[%clk 0:01:36]} 22. Rd2 {[%clk 0:02:07]}  Rxd2 {[%clk 0:01:22]} 23. Kxd2 {[%clk 0:02:08]}  Qf7 {[%clk 0:01:22]} 24. Qg2 {[%clk 0:02:00]}  Rf8 {[%clk 0:01:21]} 25. Ke2 {[%clk 0:01:59]}  Qg6 {[%clk 0:01:21]} 26. e4 {[%clk 0:01:56]}  Rf4 {[%clk 0:01:20]} 27. h3 {[%clk 0:01:48]}  Rxe4+ {[%clk 0:01:11]} 28. Kd2 {[%clk 0:01:48]}  Qg5+ {[%clk 0:01:11]} 29. Kd1 {[%clk 0:01:47]}  Qe3 {[%clk 0:01:01]} 30. Rf1 {[%clk 0:01:45]}  Qd3+ {[%clk 0:01:01]} 31. Kc1 {[%clk 0:01:45]}  h6 {[%clk 0:00:50]} 32. Rd1 {[%clk 0:01:39]}  Qe3+ {[%clk 0:00:46]} 33. Kc2 {[%clk 0:01:37]}  Kh7 {[%clk 0:00:14]} 34. b3 {[%clk 0:01:32]}  cxb3+ {[%clk 0:00:10]} 35. axb3 {[%clk 0:01:33]}  b4 {[%clk 0:00:09]} 36. cxb4 {[%clk 0:01:20]}  Rf4 {[%clk 0:00:06]} 37. Rd2 {[%clk 0:01:18]}  Rxd4 {[%clk 0:00:06]} 38. Rxd4 {[%clk 0:01:09]}  Qxd4 {[%clk 0:00:07]} 39. Qe2 {[%clk 0:01:09]}  e5 {[%clk 0:00:02]} 40. b5 {[%clk 0:00:33]}  Qf4 {[%clk 0:00:03]} 41. Kd3 {[%clk 0:00:30]}  Qd4+ {[%clk 0:00:03]} 42. Kc2 {[%clk 0:00:30]}  Kg6 {[%clk 0:00:04]} 43. Qc4 {[%clk 0:00:27]}  Qf2+ {[%clk 0:00:03]} 44. Kc3 {[%clk 0:00:27]}  Qe3+ {[%clk 0:00:03]} 45. Kb4 {[%clk 0:00:27]}  Qd2+ {[%clk 0:00:02]} 46. Ka3 {[%clk 0:00:27]}  Qd6+ {[%clk 0:00:02]} 47. Ka4 {[%clk 0:00:27]}  Qd4 {[%clk 0:00:02]} 48. Qxd4 {[%clk 0:00:22]}  exd4 {[%clk 0:00:03]} 49. Kb4 {[%clk 0:00:23]}  Kf6 {[%clk 0:00:03]} 50. Kc4 {[%clk 0:00:23]}  Ke5 {[%clk 0:00:04]} 51. h4 {[%clk 0:00:20]}  Ke4 {[%clk 0:00:04]} 52. g5 {[%clk 0:00:18]}  hxg5 {[%clk 0:00:04]} 53. hxg5 {[%clk 0:00:19]}  d3 {[%clk 0:00:04]} 54. Kc3 {[%clk 0:00:16]}  Ke3 {[%clk 0:00:05]} 0-1


[Site "https://www.chess.com"]

[Event "Titled Tuesday Blitz August 22 Early 2023"]
[White "Juicy_Fork"]
[Black "Kovalevsky, Stanislav"]
[BlackFideId "13508598"]
[WhiteElo "2341"]
[BlackElo "2503"]
[Result "0-1"]
[Round "9"]
[TimeControl "180+1"]
[Date "2023.08.22"]
[WhiteClock "0:00:39"]
[BlackClock "0:01:29"]
[Board "109"]

1. e4 {[%clk 0:02:58]}  c6 {[%clk 0:02:59]} 2. d4 {[%clk 0:02:58]}  d5 {[%clk 0:03:00]} 3. f3 {[%clk 0:02:58]}  g6 {[%clk 0:02:58]} 4. Nc3 {[%clk 0:02:55]}  Bg7 {[%clk 0:02:55]} 5. e5 {[%clk 0:02:33]}  f6 {[%clk 0:02:55]} 6. f4 {[%clk 0:02:32]}  Nh6 {[%clk 0:02:54]} 7. Nf3 {[%clk 0:02:31]}  Bg4 {[%clk 0:02:54]} 8. h3 {[%clk 0:02:28]}  Bxf3 {[%clk 0:02:54]} 9. Qxf3 {[%clk 0:02:29]}  Nf5 {[%clk 0:02:51]} 10. Qf2 {[%clk 0:02:29]}  Qb6 {[%clk 0:02:50]} 11. g4 {[%clk 0:02:09]}  Nxd4 {[%clk 0:02:50]} 12. Bd3 {[%clk 0:02:01]}  fxe5 {[%clk 0:02:46]} 13. fxe5 {[%clk 0:01:51]}  Rf8 {[%clk 0:02:45]} 14. Qe3 {[%clk 0:01:36]}  Bxe5 {[%clk 0:02:28]} 15. Rf1 {[%clk 0:01:28]}  Rxf1+ {[%clk 0:02:13]} 16. Kxf1 {[%clk 0:01:29]}  Nd7 {[%clk 0:02:11]} 17. a4 {[%clk 0:01:17]}  O-O-O {[%clk 0:02:09]} 18. a5 {[%clk 0:01:17]}  Rf8+ {[%clk 0:02:07]} 19. Kg2 {[%clk 0:01:16]}  Qc7 {[%clk 0:01:58]} 20. a6 {[%clk 0:01:13]}  b6 {[%clk 0:01:58]} 21. Ne2 {[%clk 0:01:06]}  Nxe2 {[%clk 0:01:40]} 22. Qxe2 {[%clk 0:01:02]}  Bh2 {[%clk 0:01:33]} 23. Bh6 {[%clk 0:00:52]}  Qg3+ {[%clk 0:01:29]} 24. Kh1 {[%clk 0:00:39]}  Rf2 {[%clk 0:01:29]} 0-1


[Site "https://www.chess.com"]

[Event "Titled Tuesday Blitz August 22 Early 2023"]
[White "Kaganskiy, Gleb"]
[Black "Kuzmin, Roman"]
[WhiteFideId "4132025"]
[BlackFideId "44134932"]
[WhiteElo "2333"]
[BlackElo "2501"]
[Result "0-1"]
[Round "9"]
[TimeControl "180+1"]
[Date "2023.08.22"]
[WhiteClock "0:00:00"]
[BlackClock "0:00:26"]
[Board "110"]

1. e4 {[%clk 0:03:00]}  c5 {[%clk 0:02:59]} 2. c3 {[%clk 0:03:01]}  d5 {[%clk 0:02:59]} 3. exd5 {[%clk 0:03:01]}  Qxd5 {[%clk 0:03:00]} 4. d4 {[%clk 0:03:01]}  Nc6 {[%clk 0:03:00]} 5. Nf3 {[%clk 0:03:00]}  Nf6 {[%clk 0:03:00]} 6. Be2 {[%clk 0:02:56]}  Bg4 {[%clk 0:02:56]} 7. h3 {[%clk 0:02:53]}  Bh5 {[%clk 0:02:54]} 8. c4 {[%clk 0:02:53]}  Qd7 {[%clk 0:02:46]} 9. d5 {[%clk 0:02:54]}  Bxf3 {[%clk 0:02:44]} 10. Bxf3 {[%clk 0:02:46]}  Nd4 {[%clk 0:02:45]} 11. Nc3 {[%clk 0:02:32]}  g6 {[%clk 0:02:36]} 12. Be3 {[%clk 0:02:31]}  Nxf3+ {[%clk 0:02:32]} 13. Qxf3 {[%clk 0:02:32]}  Rc8 {[%clk 0:02:26]} 14. O-O {[%clk 0:02:11]}  Bg7 {[%clk 0:02:25]} 15. Rfe1 {[%clk 0:02:11]}  O-O {[%clk 0:02:25]} 16. Re2 {[%clk 0:02:12]}  a6 {[%clk 0:02:21]} 17. a4 {[%clk 0:02:10]}  e6 {[%clk 0:02:19]} 18. dxe6 {[%clk 0:02:05]}  fxe6 {[%clk 0:02:19]} 19. Rd1 {[%clk 0:01:58]}  Qc7 {[%clk 0:02:16]} 20. Qf4 {[%clk 0:01:39]}  Qb6 {[%clk 0:02:10]} 21. Qd6 {[%clk 0:01:39]}  Rc6 {[%clk 0:01:59]} 22. Qd2 {[%clk 0:01:32]}  Qb4 {[%clk 0:01:53]} 23. Qd3 {[%clk 0:01:18]}  Ne8 {[%clk 0:01:37]} 24. Qe4 {[%clk 0:01:06]}  Bxc3 {[%clk 0:01:27]} 25. bxc3 {[%clk 0:01:04]}  Qxc3 {[%clk 0:01:28]} 26. Bc1 {[%clk 0:00:49]}  Nf6 {[%clk 0:01:15]} 27. Qb1 {[%clk 0:00:45]}  Qxc4 {[%clk 0:01:07]} 28. Rc2 {[%clk 0:00:38]}  Qe4 {[%clk 0:01:04]} 29. Bb2 {[%clk 0:00:33]}  Nd5 {[%clk 0:01:04]} 30. Ba1 {[%clk 0:00:31]}  c4 {[%clk 0:01:00]} 31. Qxb7 {[%clk 0:00:31]}  Rc7 {[%clk 0:00:57]} 32. Qxa6 {[%clk 0:00:27]}  Qxc2 {[%clk 0:00:55]} 33. Qxe6+ {[%clk 0:00:27]}  Rcf7 {[%clk 0:00:55]} 34. Qxd5 {[%clk 0:00:23]}  Qxf2+ {[%clk 0:00:55]} 35. Kh1 {[%clk 0:00:23]}  Qc2 {[%clk 0:00:48]} 36. Rf1 {[%clk 0:00:20]}  Qd3 {[%clk 0:00:45]} 37. Rxf7 {[%clk 0:00:18]}  Rxf7 {[%clk 0:00:28]} 38. Qa8+ {[%clk 0:00:13]}  Rf8 {[%clk 0:00:29]} 39. Qb7 {[%clk 0:00:02]}  Qf1+ {[%clk 0:00:26]} 40. Kh2 {[%clk 0:00:00]}  Qxa1 {[%clk 0:00:26]} 0-1


[Site "https://www.chess.com"]

[Event "Titled Tuesday Blitz August 22 Early 2023"]
[White "le-castor-faineant"]
[Black "Khamdamova, Afruza"]
[BlackFideId "14210444"]
[WhiteElo "2269"]
[BlackElo "2497"]
[Result "1/2-1/2"]
[Round "9"]
[TimeControl "180+1"]
[Date "2023.08.22"]
[WhiteClock "0:00:13"]
[BlackClock "0:00:02"]
[Board "113"]

1. e4 {[%clk 0:02:52]}  e5 {[%clk 0:02:59]} 2. Nf3 {[%clk 0:02:53]}  Nc6 {[%clk 0:02:59]} 3. Bc4 {[%clk 0:02:53]}  Nf6 {[%clk 0:02:59]} 4. Nc3 {[%clk 0:02:53]}  Nxe4 {[%clk 0:02:58]} 5. Bxf7+ {[%clk 0:02:48]}  Kxf7 {[%clk 0:02:58]} 6. Nxe4 {[%clk 0:02:49]}  d5 {[%clk 0:02:58]} 7. Ng3 {[%clk 0:02:45]}  e4 {[%clk 0:02:49]} 8. Ng1 {[%clk 0:02:43]}  Bc5 {[%clk 0:02:43]} 9. N1e2 {[%clk 0:02:40]}  Rf8 {[%clk 0:02:41]} 10. O-O {[%clk 0:02:40]}  Kg8 {[%clk 0:02:41]} 11. d4 {[%clk 0:02:40]}  Bd6 {[%clk 0:02:39]} 12. c4 {[%clk 0:02:40]}  Bg4 {[%clk 0:02:24]} 13. cxd5 {[%clk 0:02:35]}  Bxg3 {[%clk 0:02:23]} 14. dxc6 {[%clk 0:02:22]}  Bd6 {[%clk 0:02:16]} 15. cxb7 {[%clk 0:02:20]}  Rb8 {[%clk 0:02:16]} 16. Qb3+ {[%clk 0:02:20]}  Kh8 {[%clk 0:02:16]} 17. Ng3 {[%clk 0:02:20]}  Qh4 {[%clk 0:02:13]} 18. Qb5 {[%clk 0:02:05]}  h6 {[%clk 0:01:53]} 19. Bd2 {[%clk 0:01:58]}  Be6 {[%clk 0:01:39]} 20. Bb4 {[%clk 0:01:54]}  Rf5 {[%clk 0:01:36]} 21. Qxf5 {[%clk 0:01:26]}  Bxf5 {[%clk 0:01:28]} 22. Bxd6 {[%clk 0:01:26]}  cxd6 {[%clk 0:01:26]} 23. Nxf5 {[%clk 0:01:27]}  Qf6 {[%clk 0:01:24]} 24. Ne3 {[%clk 0:01:12]}  Rxb7 {[%clk 0:01:23]} 25. b3 {[%clk 0:01:11]}  Qxd4 {[%clk 0:01:22]} 26. Rfd1 {[%clk 0:01:11]}  Qf6 {[%clk 0:01:21]} 27. Rac1 {[%clk 0:01:11]}  Rf7 {[%clk 0:01:19]} 28. Rd2 {[%clk 0:01:05]}  h5 {[%clk 0:01:07]} 29. Rc6 {[%clk 0:01:01]}  Qa1+ {[%clk 0:01:04]} 30. Nd1 {[%clk 0:00:56]}  Rf6 {[%clk 0:00:44]} 31. h3 {[%clk 0:00:51]}  h4 {[%clk 0:00:44]} 32. Kh2 {[%clk 0:00:42]}  Qe5+ {[%clk 0:00:44]} 33. Kg1 {[%clk 0:00:42]}  d5 {[%clk 0:00:44]} 34. Rc5 {[%clk 0:00:37]}  Rd6 {[%clk 0:00:43]} 35. Ne3 {[%clk 0:00:37]}  Qa1+ {[%clk 0:00:43]} 36. Kh2 {[%clk 0:00:38]}  d4 {[%clk 0:00:42]} 37. Nf5 {[%clk 0:00:32]}  Rd8 {[%clk 0:00:42]} 38. Rc4 {[%clk 0:00:30]}  Qe1 {[%clk 0:00:27]} 39. Rcxd4 {[%clk 0:00:24]}  Rxd4 {[%clk 0:00:27]} 40. Rxd4 {[%clk 0:00:25]}  Qxf2 {[%clk 0:00:27]} 41. Rxe4 {[%clk 0:00:22]}  Qxf5 {[%clk 0:00:27]} 42. Rxh4+ {[%clk 0:00:21]}  Kg8 {[%clk 0:00:27]} 43. Rg4 {[%clk 0:00:21]}  Qe5+ {[%clk 0:00:27]} 44. Kg1 {[%clk 0:00:19]}  Qa1+ {[%clk 0:00:27]} 45. Kh2 {[%clk 0:00:19]}  Qxa2 {[%clk 0:00:27]} 46. b4 {[%clk 0:00:19]}  Qe6 {[%clk 0:00:27]} 47. Kh1 {[%clk 0:00:19]}  a6 {[%clk 0:00:26]} 48. Kh2 {[%clk 0:00:20]}  Qd6+ {[%clk 0:00:26]} 49. Kh1 {[%clk 0:00:20]}  Kf7 {[%clk 0:00:26]} 50. Kg1 {[%clk 0:00:18]}  Kf6 {[%clk 0:00:26]} 51. Kh1 {[%clk 0:00:18]}  g5 {[%clk 0:00:26]} 52. Kg1 {[%clk 0:00:18]}  Kf5 {[%clk 0:00:27]} 53. Kh1 {[%clk 0:00:18]}  Qd1+ {[%clk 0:00:27]} 54. Kh2 {[%clk 0:00:18]}  Qd6+ {[%clk 0:00:27]} 55. Kg1 {[%clk 0:00:18]}  Qb6+ {[%clk 0:00:23]} 56. Kf1 {[%clk 0:00:18]}  Qd8 {[%clk 0:00:20]} 57. Kf2 {[%clk 0:00:18]}  Qd2+ {[%clk 0:00:19]} 58. Kf3 {[%clk 0:00:18]}  Ke5 {[%clk 0:00:20]} 59. Re4+ {[%clk 0:00:15]}  Kd5 {[%clk 0:00:19]} 60. Rg4 {[%clk 0:00:16]}  Kc6 {[%clk 0:00:18]} 61. h4 {[%clk 0:00:09]}  gxh4 {[%clk 0:00:18]} 62. Rxh4 {[%clk 0:00:10]}  Qe1 {[%clk 0:00:16]} 63. Rf4 {[%clk 0:00:10]}  Qf1+ {[%clk 0:00:15]} 64. Kg3 {[%clk 0:00:09]}  Qd3+ {[%clk 0:00:15]} 65. Kg4 {[%clk 0:00:08]}  Kb5 {[%clk 0:00:14]} 66. g3 {[%clk 0:00:09]}  Qg6+ {[%clk 0:00:14]} 67. Kf3 {[%clk 0:00:09]}  Qh5+ {[%clk 0:00:14]} 68. Kf2 {[%clk 0:00:08]}  Qh2+ {[%clk 0:00:13]} 69. Kf3 {[%clk 0:00:09]}  Qh1+ {[%clk 0:00:13]} 70. Kf2 {[%clk 0:00:09]}  Ka4 {[%clk 0:00:10]} 71. Ke3 {[%clk 0:00:06]}  Kb3 {[%clk 0:00:10]} 72. Kf2 {[%clk 0:00:06]}  Kc3 {[%clk 0:00:10]} 73. Ke3 {[%clk 0:00:02]}  Qg1+ {[%clk 0:00:09]} 74. Kf3 {[%clk 0:00:02]}  Kd3 {[%clk 0:00:10]} 75. Kg4 {[%clk 0:00:01]}  Ke3 {[%clk 0:00:09]} 76. Rf3+ {[%clk 0:00:02]}  Ke4 {[%clk 0:00:09]} 77. Rf4+ {[%clk 0:00:02]}  Ke5 {[%clk 0:00:09]} 78. Rf5+ {[%clk 0:00:03]}  Ke6 {[%clk 0:00:08]} 79. Rf4 {[%clk 0:00:04]}  Qd1+ {[%clk 0:00:07]} 80. Kh3 {[%clk 0:00:04]}  Ke5 {[%clk 0:00:06]} 81. Kg2 {[%clk 0:00:03]}  Qe2+ {[%clk 0:00:05]} 82. Kh3 {[%clk 0:00:03]}  Qe3 {[%clk 0:00:05]} 83. Kg4 {[%clk 0:00:04]}  Qd2 {[%clk 0:00:03]} 84. Kh3 {[%clk 0:00:05]}  Qxf4 {[%clk 0:00:03]} 85. gxf4+ {[%clk 0:00:05]}  Kxf4 {[%clk 0:00:03]} 86. Kg2 {[%clk 0:00:05]}  Ke3 {[%clk 0:00:03]} 87. Kf1 {[%clk 0:00:05]}  Kd2 {[%clk 0:00:04]} 88. Kf2 {[%clk 0:00:06]}  Kc3 {[%clk 0:00:04]} 89. Ke1 {[%clk 0:00:06]}  Kxb4 {[%clk 0:00:04]} 90. Kd1 {[%clk 0:00:07]}  Kb3 {[%clk 0:00:01]} 91. Kc1 {[%clk 0:00:07]}  Ka2 {[%clk 0:00:01]} 92. Kc2 {[%clk 0:00:08]}  a5 {[%clk 0:00:02]} 93. Kc1 {[%clk 0:00:09]}  a4 {[%clk 0:00:02]} 94. Kc2 {[%clk 0:00:09]}  a3 {[%clk 0:00:03]} 95. Kc1 {[%clk 0:00:10]}  Kb3 {[%clk 0:00:03]} 96. Kb1 {[%clk 0:00:11]}  Kc3 {[%clk 0:00:02]} 97. Ka1 {[%clk 0:00:11]}  Kb3 {[%clk 0:00:02]} 98. Kb1 {[%clk 0:00:12]}  a2+ {[%clk 0:00:02]} 99. Ka1 {[%clk 0:00:13]}  Ka3 {[%clk 0:00:02]} 1/2-1/2


[Site "https://www.chess.com"]

[Event "Titled Tuesday Blitz August 22 Early 2023"]
[White "Biregina"]
[Black "Kriti Mayur Patel"]
[BlackFideId "35061780"]
[WhiteElo "2414"]
[BlackElo "2121"]
[Result "1-0"]
[Round "9"]
[TimeControl "180+1"]
[Date "2023.08.22"]
[WhiteClock "0:00:15"]
[BlackClock "0:00:02"]
[Board "114"]

1. d4 {[%clk 0:03:00]}  d5 {[%clk 0:02:56]} 2. Nf3 {[%clk 0:03:00]}  Nf6 {[%clk 0:02:54]} 3. e3 {[%clk 0:03:01]}  e6 {[%clk 0:02:54]} 4. b3 {[%clk 0:02:57]}  c5 {[%clk 0:02:52]} 5. Bb2 {[%clk 0:02:54]}  Nc6 {[%clk 0:02:52]} 6. Ne5 {[%clk 0:02:49]}  Nxe5 {[%clk 0:02:47]} 7. dxe5 {[%clk 0:02:48]}  Nd7 {[%clk 0:02:39]} 8. c4 {[%clk 0:02:40]}  dxc4 {[%clk 0:02:22]} 9. Bxc4 {[%clk 0:02:37]}  a6 {[%clk 0:02:19]} 10. a4 {[%clk 0:02:32]}  Qg5 {[%clk 0:02:16]} 11. O-O {[%clk 0:02:24]}  Be7 {[%clk 0:02:02]} 12. f4 {[%clk 0:02:22]}  Qg6 {[%clk 0:01:56]} 13. Bd3 {[%clk 0:02:20]}  Qh6 {[%clk 0:01:54]} 14. Rf3 {[%clk 0:02:18]}  g5 {[%clk 0:01:50]} 15. Rh3 {[%clk 0:01:57]}  Qg7 {[%clk 0:01:46]} 16. Qg4 {[%clk 0:01:55]}  h6 {[%clk 0:01:38]} 17. Nd2 {[%clk 0:01:52]}  f5 {[%clk 0:01:16]} 18. exf6 {[%clk 0:01:48]}  Nxf6 {[%clk 0:01:16]} 19. Bxf6 {[%clk 0:01:47]}  Bxf6 {[%clk 0:01:05]} 20. Qh5+ {[%clk 0:01:40]}  Ke7 {[%clk 0:00:59]} 21. Rc1 {[%clk 0:01:38]}  e5 {[%clk 0:00:47]} 22. fxe5 {[%clk 0:01:31]}  Bxe5 {[%clk 0:00:39]} 23. Rf3 {[%clk 0:01:29]}  Be6 {[%clk 0:00:24]} 24. Bc4 {[%clk 0:01:19]}  Bxc4 {[%clk 0:00:18]} 25. Nxc4 {[%clk 0:01:20]}  Rhf8 {[%clk 0:00:18]} 26. Rcf1 {[%clk 0:01:17]}  Bf6 {[%clk 0:00:17]} 27. e4 {[%clk 0:01:11]}  b5 {[%clk 0:00:17]} 28. e5 {[%clk 0:01:04]}  Bxe5 {[%clk 0:00:14]} 29. Nxe5 {[%clk 0:00:55]}  Qxe5 {[%clk 0:00:14]} 30. Rf7+ {[%clk 0:00:48]}  Kd6 {[%clk 0:00:11]} 31. Qxh6+ {[%clk 0:00:46]}  Kd5 {[%clk 0:00:07]} 32. Rd7+ {[%clk 0:00:35]}  Ke4 {[%clk 0:00:06]} 33. Re1+ {[%clk 0:00:35]}  Kf4 {[%clk 0:00:04]} 34. g3+ {[%clk 0:00:28]}  Kf5 {[%clk 0:00:02]} 35. Qh7+ {[%clk 0:00:23]}  Kg4 {[%clk 0:00:02]} 36. Re4+ {[%clk 0:00:15]}  Qxe4 {[%clk 0:00:01]} 37. Qxe4+ {[%clk 0:00:16]}  Kh5 {[%clk 0:00:02]} 38. Rh7# {[%clk 0:00:15]} 1-0


[Site "https://www.chess.com"]

[Event "Titled Tuesday Blitz August 22 Early 2023"]
[White "Pein, Jonathan"]
[Black "Tologon tegin, Semetei"]
[WhiteFideId "417092"]
[BlackFideId "13800574"]
[WhiteElo "2418"]
[BlackElo "2597"]
[Result "0-1"]
[Round "9"]
[TimeControl "180+1"]
[Date "2023.08.22"]
[WhiteClock "0:00:09"]
[BlackClock "0:00:26"]
[Board "116"]

1. d3 {[%clk 0:02:57]}  d5 {[%clk 0:02:58]} 2. Nf3 {[%clk 0:02:58]}  Nc6 {[%clk 0:02:53]} 3. Nbd2 {[%clk 0:02:57]}  e5 {[%clk 0:02:52]} 4. e4 {[%clk 0:02:57]}  Nf6 {[%clk 0:02:52]} 5. Be2 {[%clk 0:02:56]}  Bc5 {[%clk 0:02:52]} 6. O-O {[%clk 0:02:54]}  O-O {[%clk 0:02:52]} 7. c3 {[%clk 0:02:53]}  Re8 {[%clk 0:02:51]} 8. Qc2 {[%clk 0:02:52]}  a5 {[%clk 0:02:47]} 9. h3 {[%clk 0:02:51]}  h6 {[%clk 0:02:46]} 10. b3 {[%clk 0:02:51]}  Ba7 {[%clk 0:02:29]} 11. Bb2 {[%clk 0:02:50]}  Nh5 {[%clk 0:02:29]} 12. Rfe1 {[%clk 0:02:49]}  Nf4 {[%clk 0:02:28]} 13. Bf1 {[%clk 0:02:49]}  dxe4 {[%clk 0:02:23]} 14. dxe4 {[%clk 0:02:35]}  Qf6 {[%clk 0:02:20]} 15. Rad1 {[%clk 0:01:57]}  Qg6 {[%clk 0:02:05]} 16. Kh1 {[%clk 0:00:59]}  Bxf2 {[%clk 0:02:02]} 17. Nc4 {[%clk 0:00:59]}  Qg3 {[%clk 0:01:45]} 18. Re2 {[%clk 0:00:49]}  Nxe2 {[%clk 0:01:21]} 19. Qxe2 {[%clk 0:00:50]}  Ba7 {[%clk 0:01:07]} 20. Bc1 {[%clk 0:00:49]}  Be6 {[%clk 0:01:02]} 21. Ne3 {[%clk 0:00:49]}  Rad8 {[%clk 0:00:57]} 22. Nd5 {[%clk 0:00:49]}  Bxd5 {[%clk 0:00:48]} 23. exd5 {[%clk 0:00:50]}  e4 {[%clk 0:00:42]} 24. Nh2 {[%clk 0:00:34]}  Ne7 {[%clk 0:00:33]} 25. c4 {[%clk 0:00:25]}  Nf5 {[%clk 0:00:31]} 26. Qg4 {[%clk 0:00:18]}  Qf2 {[%clk 0:00:27]} 27. Rd2 {[%clk 0:00:09]}  Qg1# {[%clk 0:00:26]} 0-1


[Site "https://www.chess.com"]

[Event "Titled Tuesday Blitz August 22 Early 2023"]
[White "Polaczek, Richard"]
[Black "Kochiev, Ivan"]
[WhiteFideId "200026"]
[BlackFideId "2917890"]
[WhiteElo "2395"]
[BlackElo "2567"]
[Result "0-1"]
[Round "9"]
[TimeControl "180+1"]
[Date "2023.08.22"]
[WhiteClock "0:00:19"]
[BlackClock "0:00:02"]
[Board "117"]

1. d4 {[%clk 0:02:58]}  Nf6 {[%clk 0:03:00]} 2. c4 {[%clk 0:02:58]}  e6 {[%clk 0:03:00]} 3. Nc3 {[%clk 0:02:57]}  c5 {[%clk 0:03:01]} 4. d5 {[%clk 0:02:56]}  exd5 {[%clk 0:03:02]} 5. cxd5 {[%clk 0:02:56]}  d6 {[%clk 0:03:03]} 6. h3 {[%clk 0:02:56]}  g6 {[%clk 0:03:03]} 7. Nf3 {[%clk 0:02:56]}  Bg7 {[%clk 0:03:04]} 8. e4 {[%clk 0:02:56]}  O-O {[%clk 0:03:03]} 9. Bd3 {[%clk 0:02:56]}  b5 {[%clk 0:02:58]} 10. Nxb5 {[%clk 0:02:55]}  Nxe4 {[%clk 0:02:53]} 11. Bxe4 {[%clk 0:02:54]}  Re8 {[%clk 0:02:53]} 12. Ng5 {[%clk 0:02:52]}  Qa5+ {[%clk 0:01:24]} 13. Nc3 {[%clk 0:02:31]}  Ba6 {[%clk 0:00:57]} 14. Qc2 {[%clk 0:02:12]}  h6 {[%clk 0:00:46]} 15. Ne6 {[%clk 0:02:10]}  fxe6 {[%clk 0:00:45]} 16. Be3 {[%clk 0:01:58]}  Nc6 {[%clk 0:00:18]} 17. dxc6 {[%clk 0:01:50]}  d5 {[%clk 0:00:19]} 18. Bxg6 {[%clk 0:01:46]}  d4 {[%clk 0:00:17]} 19. Bxe8 {[%clk 0:01:43]}  dxe3 {[%clk 0:00:08]} 20. Bd7 {[%clk 0:01:06]}  exf2+ {[%clk 0:00:06]} 21. Kd2 {[%clk 0:01:05]}  Rf8 {[%clk 0:00:02]} 22. Raf1 {[%clk 0:00:53]}  Bxf1 {[%clk 0:00:01]} 23. Rxf1 {[%clk 0:00:52]}  Qb4 {[%clk 0:00:02]} 24. Kc1 {[%clk 0:00:43]}  Kh8 {[%clk 0:00:01]} 25. Kb1 {[%clk 0:00:40]}  Qd4 {[%clk 0:00:01]} 26. Qe4 {[%clk 0:00:33]}  Qd6 {[%clk 0:00:01]} 27. Nd1 {[%clk 0:00:21]}  Rb8 {[%clk 0:00:02]} 28. Rxf2 {[%clk 0:00:19]}  Qxd1# {[%clk 0:00:02]} 0-1


[Site "https://www.chess.com"]

[Event "Titled Tuesday Blitz August 22 Early 2023"]
[White "ExchangeAB"]
[Black "Sanduleac, Vasile"]
[BlackFideId "13900161"]
[WhiteElo "2414"]
[BlackElo "2499"]
[Result "1-0"]
[Round "9"]
[TimeControl "180+1"]
[Date "2023.08.22"]
[WhiteClock "0:01:03"]
[BlackClock "0:01:28"]
[Board "118"]

1. d4 {[%clk 0:03:00]}  d6 {[%clk 0:02:59]} 2. e4 {[%clk 0:03:00]}  g6 {[%clk 0:02:59]} 3. Nc3 {[%clk 0:03:01]}  Bg7 {[%clk 0:02:59]} 4. Nf3 {[%clk 0:03:01]}  Bg4 {[%clk 0:02:58]} 5. Be2 {[%clk 0:03:01]}  c6 {[%clk 0:02:57]} 6. O-O {[%clk 0:03:02]}  Nd7 {[%clk 0:02:57]} 7. h3 {[%clk 0:03:01]}  Bxf3 {[%clk 0:02:56]} 8. Bxf3 {[%clk 0:03:02]}  Ngf6 {[%clk 0:02:56]} 9. Be3 {[%clk 0:02:59]}  O-O {[%clk 0:02:55]} 10. Qd2 {[%clk 0:02:58]}  Qc7 {[%clk 0:02:54]} 11. g3 {[%clk 0:02:56]}  e5 {[%clk 0:02:53]} 12. Bg2 {[%clk 0:02:55]}  a6 {[%clk 0:02:52]} 13. Rad1 {[%clk 0:02:53]}  Rfe8 {[%clk 0:02:51]} 14. dxe5 {[%clk 0:02:50]}  dxe5 {[%clk 0:02:50]} 15. Qd6 {[%clk 0:02:34]}  Qa5 {[%clk 0:02:48]} 16. a3 {[%clk 0:02:27]}  Bf8 {[%clk 0:02:46]} 17. Qd2 {[%clk 0:02:26]}  Rad8 {[%clk 0:02:44]} 18. Nd5 {[%clk 0:02:17]}  Qxd2 {[%clk 0:02:41]} 19. Nxf6+ {[%clk 0:02:17]}  Nxf6 {[%clk 0:02:41]} 20. Rxd2 {[%clk 0:02:17]}  Rxd2 {[%clk 0:02:40]} 21. Bxd2 {[%clk 0:02:18]}  Rd8 {[%clk 0:02:39]} 22. Be3 {[%clk 0:02:16]}  Nd7 {[%clk 0:02:20]} 23. Rd1 {[%clk 0:02:12]}  Be7 {[%clk 0:02:20]} 24. Kf1 {[%clk 0:02:05]}  Nf8 {[%clk 0:02:19]} 25. Rxd8 {[%clk 0:02:04]}  Bxd8 {[%clk 0:02:19]} 26. Bf3 {[%clk 0:02:02]}  h5 {[%clk 0:02:17]} 27. c3 {[%clk 0:01:59]}  Ne6 {[%clk 0:02:17]} 28. Ke2 {[%clk 0:01:58]}  Kf8 {[%clk 0:02:17]} 29. Kd3 {[%clk 0:01:57]}  Ke7 {[%clk 0:02:17]} 30. b4 {[%clk 0:01:56]}  Kd7 {[%clk 0:02:17]} 31. Bd1 {[%clk 0:01:56]}  h4 {[%clk 0:02:14]} 32. Bg4 {[%clk 0:01:46]}  b5 {[%clk 0:02:08]} 33. Ke2 {[%clk 0:01:23]}  hxg3 {[%clk 0:01:58]} 34. fxg3 {[%clk 0:01:23]}  a5 {[%clk 0:01:57]} 35. Kf3 {[%clk 0:01:23]}  a4 {[%clk 0:01:57]} 36. h4 {[%clk 0:01:21]}  Bf6 {[%clk 0:01:54]} 37. Bf2 {[%clk 0:01:18]}  Ke7 {[%clk 0:01:54]} 38. Bxe6 {[%clk 0:01:16]}  Kxe6 {[%clk 0:01:54]} 39. g4 {[%clk 0:01:17]}  Be7 {[%clk 0:01:53]} 40. h5 {[%clk 0:01:15]}  g5 {[%clk 0:01:49]} 41. Bc5 {[%clk 0:01:04]}  Bxc5 {[%clk 0:01:47]} 42. bxc5 {[%clk 0:01:05]}  Kf6 {[%clk 0:01:39]} 43. Ke3 {[%clk 0:01:04]}  Ke6 {[%clk 0:01:34]} 44. Kd3 {[%clk 0:01:04]}  f6 {[%clk 0:01:28]} 45. c4 {[%clk 0:01:03]} 1-0


[Site "https://www.chess.com"]